[Event "Late-Titled-Tuesday-Blitz-January-30-2024"]
[Site "Chess.com"]
[Date "2024.01.30"]
[Round "10"]
[White "Hamisandwich"]
[Black "mightysmasher"]
[Result "1-0"]
[WhiteElo "2735"]
[BlackElo "2579"]
[TimeControl "180+1"]
[EndTime "15:55:28 PST"]
[Termination "Hamisandwich won by checkmate"]

1. c3 {[%clk 0:03:00.9]} 1... e5 {[%clk 0:02:59.1]} 2. d4 {[%clk 0:02:59.1]}
2... exd4 {[%clk 0:02:59.3]} 3. cxd4 {[%clk 0:03:00]} 3... d5 {[%clk 0:02:59.4]}
4. Nf3 {[%clk 0:02:59.4]} 4... Nf6 {[%clk 0:02:59.6]} 5. Nc3 {[%clk 0:02:58.8]}
5... c6 {[%clk 0:02:58.7]} 6. Bf4 {[%clk 0:02:58.3]} 6... Bd6 {[%clk 0:02:58]}
7. Bxd6 {[%clk 0:02:57.1]} 7... Qxd6 {[%clk 0:02:58.9]} 8. e3 {[%clk 0:02:58]}
8... O-O {[%clk 0:02:58.8]} 9. Qc2 {[%clk 0:02:52.7]} 9... Re8 {[%clk
0:02:58.4]} 10. Bd3 {[%clk 0:02:52.5]} 10... Bg4 {[%clk 0:02:56.5]} 11. Ne5
{[%clk 0:02:52.2]} 11... Bh5 {[%clk 0:02:54.3]} 12. f4 {[%clk 0:02:52.5]} 12...
Nbd7 {[%clk 0:02:53.1]} 13. h3 {[%clk 0:02:52.1]} 13... Bg6 {[%clk 0:02:51.2]}
14. f5 {[%clk 0:02:48.6]} 14... Nxe5 {[%clk 0:02:50.8]} 15. dxe5 {[%clk
0:02:49.4]} 15... Qxe5 {[%clk 0:02:50.2]} 16. fxg6 {[%clk 0:02:46.1]} 16...
Qxe3+ {[%clk 0:02:48]} 17. Kd1 {[%clk 0:02:41.6]} 17... hxg6 {[%clk 0:02:47.5]}
18. Qd2 {[%clk 0:02:33.8]} 18... Qg3 {[%clk 0:02:42.6]} 19. Kc2 {[%clk
0:02:30.2]} 19... Ne4 {[%clk 0:02:41.3]} 20. Bxe4 {[%clk 0:02:24.8]} 20... dxe4
{[%clk 0:02:40.7]} 21. Rad1 {[%clk 0:02:19.2]} 21... e3 {[%clk 0:02:26.4]} 22.
Qe2 {[%clk 0:02:19.3]} 22... Rad8 {[%clk 0:02:21.9]} 23. Rxd8 {[%clk 0:02:19]}
23... Rxd8 {[%clk 0:02:21.5]} 24. Rd1 {[%clk 0:02:19.9]} 24... Re8 {[%clk
0:02:20]} 25. Rd3 {[%clk 0:02:19.3]} 25... f5 {[%clk 0:02:17]} 26. Rd7 {[%clk
0:02:12.2]} 26... b5 {[%clk 0:02:09.5]} 27. Rd1 {[%clk 0:01:47.3]} 27... Kh7
{[%clk 0:01:57]} 28. Qf3 {[%clk 0:01:46.1]} 28... Qxf3 {[%clk 0:01:45.5]} 29.
gxf3 {[%clk 0:01:47]} 29... f4 {[%clk 0:01:38.2]} 30. h4 {[%clk 0:01:39.5]}
30... Re5 {[%clk 0:01:36.2]} 31. Ne2 {[%clk 0:01:35.9]} 31... Rc5+ {[%clk
0:01:32.8]} 32. Kb1 {[%clk 0:01:33.8]} 32... Rh5 {[%clk 0:01:29]} 33. Nxf4
{[%clk 0:01:30.5]} 33... Rxh4 {[%clk 0:01:26.4]} 34. Ne2 {[%clk 0:01:26.2]}
34... Rh2 {[%clk 0:01:23.7]} 35. Re1 {[%clk 0:01:25]} 35... Rf2 {[%clk
0:01:14.7]} 36. f4 {[%clk 0:01:23.8]} 36... c5 {[%clk 0:01:11.7]} 37. Nc3 {[%clk
0:01:19.8]} 37... b4 {[%clk 0:01:07.4]} 38. Nd5 {[%clk 0:01:13.6]} 38... e2
{[%clk 0:00:52.9]} 39. Kc2 {[%clk 0:01:10.1]} 39... a5 {[%clk 0:00:52.4]} 40. b3
{[%clk 0:01:02.5]} 40... Kg8 {[%clk 0:00:46.1]} 41. Kd3 {[%clk 0:00:58.6]} 41...
Rf3+ {[%clk 0:00:36.2]} 42. Kc4 {[%clk 0:00:54.3]} 42... Rf2 {[%clk 0:00:28.9]}
43. Kxc5 {[%clk 0:00:52]} 43... Kf7 {[%clk 0:00:29]} 44. Kd4 {[%clk 0:00:51]}
44... Ke6 {[%clk 0:00:25.4]} 45. Ke4 {[%clk 0:00:50.5]} 45... Kd6 {[%clk
0:00:19.4]} 46. Ne3 {[%clk 0:00:48.8]} 46... Kc5 {[%clk 0:00:18.5]} 47. Nc4
{[%clk 0:00:47.8]} 47... a4 {[%clk 0:00:18.4]} 48. Ne5 {[%clk 0:00:48.2]} 48...
axb3 {[%clk 0:00:16.1]} 49. Nd3+ {[%clk 0:00:45.7]} 49... Kc4 {[%clk 0:00:15.4]}
50. axb3+ {[%clk 0:00:45.5]} 50... Kxb3 {[%clk 0:00:14.4]} 51. Nxf2 {[%clk
0:00:46]} 51... Ka3 {[%clk 0:00:13.7]} 52. Rxe2 {[%clk 0:00:46.3]} 52... b3
{[%clk 0:00:14.6]} 53. Nd3 {[%clk 0:00:46.9]} 53... g5 {[%clk 0:00:12.8]} 54.
fxg5 {[%clk 0:00:47.8]} 54... g6 {[%clk 0:00:13.6]} 55. Kd4 {[%clk 0:00:48]}
55... Ka4 {[%clk 0:00:13.8]} 56. Kc4 {[%clk 0:00:48]} 56... Ka3 {[%clk
0:00:14.3]} 57. Rb2 {[%clk 0:00:31.6]} 57... Ka4 {[%clk 0:00:13.6]} 58. Rxb3
{[%clk 0:00:32]} 58... Ka5 {[%clk 0:00:14.1]} 59. Kc5 {[%clk 0:00:32.5]} 59...
Ka4 {[%clk 0:00:11.5]} 60. Rc3 {[%clk 0:00:32.4]} 60... Ka5 {[%clk 0:00:10.8]}
61. Ra3# {[%clk 0:00:33.3]} 1-0

[Event "Late-Titled-Tuesday-Blitz-January-30-2024"]
[Site "Chess.com"]
[Date "2024.01.30"]
[Round "10"]
[White "DonJuanEGenaro"]
[Black "WPWPWP-2015"]
[Result "0-1"]
[WhiteElo "2052"]
[BlackElo "2478"]
[TimeControl "180+1"]
[EndTime "15:55:29 PST"]
[Termination "WPWPWP-2015 won on time"]

1. c4 {[%clk 0:03:00.9]} 1... e5 {[%clk 0:02:56.9]} 2. Nc3 {[%clk 0:03:00.1]}
2... Nf6 {[%clk 0:02:56.7]} 3. Nf3 {[%clk 0:03:00]} 3... Nc6 {[%clk 0:02:56.7]}
4. e3 {[%clk 0:03:00.1]} 4... Bb4 {[%clk 0:02:56.3]} 5. a3 {[%clk 0:02:56.3]}
5... Bxc3 {[%clk 0:02:55.7]} 6. bxc3 {[%clk 0:02:55.8]} 6... d6 {[%clk
0:02:56.6]} 7. d4 {[%clk 0:02:55]} 7... O-O {[%clk 0:02:57.5]} 8. Be2 {[%clk
0:02:52.2]} 8... e4 {[%clk 0:02:53.9]} 9. Nd2 {[%clk 0:02:50.1]} 9... Bf5 {[%clk
0:02:52.9]} 10. g4 {[%clk 0:02:43.8]} 10... Bg6 {[%clk 0:02:52.2]} 11. g5 {[%clk
0:02:43.6]} 11... Nd7 {[%clk 0:02:49.2]} 12. h4 {[%clk 0:02:43.4]} 12... f5
{[%clk 0:02:42.5]} 13. f4 {[%clk 0:02:18.8]} 13... Bf7 {[%clk 0:02:29.4]} 14. a4
{[%clk 0:01:54.6]} 14... Na5 {[%clk 0:02:28.4]} 15. Ba3 {[%clk 0:01:52.7]} 15...
Kh8 {[%clk 0:02:25.8]} 16. Bb4 {[%clk 0:01:52.3]} 16... Nc6 {[%clk 0:02:24.1]}
17. Qb3 {[%clk 0:01:45.8]} 17... Bg8 {[%clk 0:02:18.2]} 18. Ba3 {[%clk
0:01:43.4]} 18... Na5 {[%clk 0:02:17.2]} 19. Qb5 {[%clk 0:01:36.3]} 19... b6
{[%clk 0:02:16.5]} 20. Qb2 {[%clk 0:01:27.5]} 20... c5 {[%clk 0:02:12.8]} 21. d5
{[%clk 0:01:19.3]} 21... Re8 {[%clk 0:02:10.6]} 22. h5 {[%clk 0:01:17.9]} 22...
Nf8 {[%clk 0:02:09.9]} 23. Nb3 {[%clk 0:01:05.2]} 23... Re7 {[%clk 0:02:02.2]}
24. Nxa5 {[%clk 0:01:04.4]} 24... bxa5 {[%clk 0:02:02.1]} 25. Rb1 {[%clk
0:01:03.4]} 25... Nd7 {[%clk 0:02:00.3]} 26. Kf2 {[%clk 0:00:59.8]} 26... Nb6
{[%clk 0:01:52.4]} 27. Qc2 {[%clk 0:00:59.5]} 27... Bf7 {[%clk 0:01:51.1]} 28.
Rb5 {[%clk 0:00:57.4]} 28... Be8 {[%clk 0:01:50]} 29. Rxa5 {[%clk 0:00:56.1]}
29... Nxc4 {[%clk 0:01:48.5]} 30. Bxc4 {[%clk 0:00:52.9]} 30... Qxa5 {[%clk
0:01:47.7]} 31. Ra1 {[%clk 0:00:35.2]} 31... Bxh5 {[%clk 0:01:43.2]} 32. Bb2
{[%clk 0:00:21.4]} 32... Kg8 {[%clk 0:01:40.3]} 33. Bb5 {[%clk 0:00:19.6]} 33...
Rb8 {[%clk 0:01:28.3]} 34. c4 {[%clk 0:00:19.4]} 34... Bg6 {[%clk 0:01:22.4]}
35. Bc3 {[%clk 0:00:18.9]} 35... Qc7 {[%clk 0:01:18.9]} 36. a5 {[%clk
0:00:18.7]} 36... Be8 {[%clk 0:01:07.3]} 37. Rb1 {[%clk 0:00:15.6]} 37... a6
{[%clk 0:01:04.4]} 38. Bxa6 {[%clk 0:00:15.2]} 38... Rxb1 {[%clk 0:00:58.4]} 39.
Qxb1 {[%clk 0:00:14.7]} 39... Rd7 {[%clk 0:00:41.7]} 40. Bb5 {[%clk 0:00:13.1]}
40... Rd8 {[%clk 0:00:41.7]} 41. a6 {[%clk 0:00:13.1]} 41... Rb8 {[%clk
0:00:36.4]} 42. Qa1 {[%clk 0:00:12.6]} 42... Qf7 {[%clk 0:00:32.1]} 43. a7
{[%clk 0:00:09.4]} 43... Ra8 {[%clk 0:00:32]} 44. Bxe8 {[%clk 0:00:08.9]} 44...
Qxe8 {[%clk 0:00:23.6]} 45. Bxg7 {[%clk 0:00:07.8]} 45... Qf7 {[%clk 0:00:22.1]}
46. Bh6 {[%clk 0:00:06.3]} 46... Rxa7 {[%clk 0:00:18.4]} 47. Qb2 {[%clk
0:00:06.3]} 47... Ra8 {[%clk 0:00:17.3]} 48. Qb5 {[%clk 0:00:03.9]} 48... Qe7
{[%clk 0:00:16.1]} 49. Kg3 {[%clk 0:00:03.4]} 49... Rd8 {[%clk 0:00:14.7]} 50.
Kh4 {[%clk 0:00:02.6]} 50... Qd7 {[%clk 0:00:14.1]} 51. Qb6 {[%clk 0:00:02.2]}
51... Kf7 {[%clk 0:00:13.4]} 52. Qb2 {[%clk 0:00:01]} 52... Kg8 {[%clk
0:00:12.4]} 0-1

[Event "Late-Titled-Tuesday-Blitz-January-30-2024"]
[Site "Chess.com"]
[Date "2024.01.30"]
[Round "10"]
[White "jcmesafischer"]
[Black "wqws"]
[Result "0-1"]
[WhiteElo "2370"]
[BlackElo "2634"]
[TimeControl "180+1"]
[EndTime "15:55:34 PST"]
[Termination "wqws won on time"]

1. e4 {[%clk 0:02:47.9]} 1... e5 {[%clk 0:02:59.3]} 2. Nf3 {[%clk 0:02:43]} 2...
Nc6 {[%clk 0:02:59.5]} 3. Bc4 {[%clk 0:02:41.1]} 3... Nf6 {[%clk 0:02:59]} 4. d3
{[%clk 0:02:40.9]} 4... Be7 {[%clk 0:02:59.1]} 5. O-O {[%clk 0:02:39.2]} 5...
O-O {[%clk 0:02:59]} 6. c3 {[%clk 0:02:39.6]} 6... d6 {[%clk 0:02:53.3]} 7. b4
{[%clk 0:02:38.5]} 7... h6 {[%clk 0:02:49.7]} 8. Nbd2 {[%clk 0:02:34.3]} 8...
Kh8 {[%clk 0:02:48.9]} 9. Bb3 {[%clk 0:02:34]} 9... Nh7 {[%clk 0:02:48]} 10. b5
{[%clk 0:02:25.1]} 10... Na5 {[%clk 0:02:47.9]} 11. Bc2 {[%clk 0:02:25.7]} 11...
f5 {[%clk 0:02:47.7]} 12. exf5 {[%clk 0:02:25.2]} 12... Bxf5 {[%clk 0:02:48.2]}
13. d4 {[%clk 0:02:25.2]} 13... Bxc2 {[%clk 0:02:42.3]} 14. Qxc2 {[%clk
0:02:26.1]} 14... exd4 {[%clk 0:02:32]} 15. Nxd4 {[%clk 0:02:20]} 15... Qd7
{[%clk 0:02:32.2]} 16. Re1 {[%clk 0:02:09.4]} 16... Bf6 {[%clk 0:02:31.6]} 17.
Ne4 {[%clk 0:02:08.8]} 17... Rae8 {[%clk 0:02:28.5]} 18. Bb2 {[%clk 0:01:52.7]}
18... Nc4 {[%clk 0:02:26.7]} 19. Nxf6 {[%clk 0:01:52.2]} 19... Nxf6 {[%clk
0:02:26.1]} 20. Qb3 {[%clk 0:01:48.4]} 20... d5 {[%clk 0:02:19.2]} 21. a4 {[%clk
0:01:35.9]} 21... Ne4 {[%clk 0:02:18.5]} 22. f3 {[%clk 0:01:31.8]} 22... Nc5
{[%clk 0:02:18.5]} 23. Qc2 {[%clk 0:01:28.1]} 23... Rxe1+ {[%clk 0:02:01.2]} 24.
Rxe1 {[%clk 0:01:24.1]} 24... Nxb2 {[%clk 0:02:01.7]} 25. Qxb2 {[%clk
0:01:20.2]} 25... Nd3 {[%clk 0:02:02.3]} 26. Qa3 {[%clk 0:01:20.1]} 26... Re8
{[%clk 0:02:01.9]} 27. Rd1 {[%clk 0:01:09.8]} 27... Nf4 {[%clk 0:01:59.8]} 28.
Qb2 {[%clk 0:01:05]} 28... Qf7 {[%clk 0:01:56.1]} 29. Qd2 {[%clk 0:01:02.5]}
29... c5 {[%clk 0:01:46.7]} 30. bxc6 {[%clk 0:00:58.1]} 30... bxc6 {[%clk
0:01:46.7]} 31. Re1 {[%clk 0:00:48]} 31... Rxe1+ {[%clk 0:01:45.6]} 32. Qxe1
{[%clk 0:00:48.3]} 32... c5 {[%clk 0:01:43.2]} 33. Nb5 {[%clk 0:00:47.9]} 33...
Qg6 {[%clk 0:01:37.2]} 34. g3 {[%clk 0:00:38]} 34... Nh3+ {[%clk 0:01:27.8]} 35.
Kg2 {[%clk 0:00:37.1]} 35... Ng5 {[%clk 0:01:21.7]} 36. h4 {[%clk 0:00:24.9]}
36... Ne6 {[%clk 0:01:21.6]} 37. Qe3 {[%clk 0:00:18.5]} 37... a6 {[%clk
0:01:17]} 38. Nd6 {[%clk 0:00:17.8]} 38... d4 {[%clk 0:01:14.8]} 39. cxd4 {[%clk
0:00:16.7]} 39... cxd4 {[%clk 0:01:12.6]} 40. Qe4 {[%clk 0:00:12]} 40... Qf6
{[%clk 0:00:57.9]} 41. f4 {[%clk 0:00:09.6]} 41... Nc5 {[%clk 0:00:44.3]} 42.
Qa8+ {[%clk 0:00:08.8]} 42... Kh7 {[%clk 0:00:44.1]} 43. Qd5 {[%clk 0:00:09.1]}
43... Nxa4 {[%clk 0:00:40.9]} 44. Ne4 {[%clk 0:00:02.7]} 44... Qe7 {[%clk
0:00:36.2]} 45. Qxd4 {[%clk 0:00:02.5]} 45... Nb2 {[%clk 0:00:34.7]} 46. h5
{[%clk 0:00:02.2]} 46... a5 {[%clk 0:00:28.3]} 47. Nf2 {[%clk 0:00:01.9]} 47...
Qb4 {[%clk 0:00:26.8]} 48. Qe5 {[%clk 0:00:02.3]} 48... Qb7+ {[%clk 0:00:24.2]}
49. Kh3 {[%clk 0:00:02.1]} 49... Qc8+ {[%clk 0:00:22.5]} 50. g4 {[%clk
0:00:02.4]} 50... Nc4 {[%clk 0:00:20.6]} 51. Qc3 {[%clk 0:00:01.2]} 51... Qc6
{[%clk 0:00:20]} 52. Nd3 {[%clk 0:00:01.3]} 52... Qf3+ {[%clk 0:00:19.8]} 53.
Kh4 {[%clk 0:00:01.8]} 53... Ne3 {[%clk 0:00:19.7]} 0-1

[Event "Late-Titled-Tuesday-Blitz-January-30-2024"]
[Site "Chess.com"]
[Date "2024.01.30"]
[Round "10"]
[White "Felix-Rose"]
[Black "RodokininEV"]
[Result "1-0"]
[WhiteElo "2417"]
[BlackElo "2627"]
[TimeControl "180+1"]
[EndTime "15:55:46 PST"]
[Termination "Felix-Rose won by checkmate"]

1. e4 {[%clk 0:03:00.3]} 1... e5 {[%clk 0:03:00.7]} 2. Nf3 {[%clk 0:03:00.3]}
2... Nc6 {[%clk 0:03:01.1]} 3. Bb5 {[%clk 0:03:00]} 3... Nf6 {[%clk 0:02:59.7]}
4. O-O {[%clk 0:02:59.1]} 4... Nxe4 {[%clk 0:02:59.3]} 5. d4 {[%clk 0:02:59.5]}
5... Nd6 {[%clk 0:02:58.7]} 6. dxe5 {[%clk 0:02:59.2]} 6... Nxb5 {[%clk
0:02:58.3]} 7. a4 {[%clk 0:02:59.4]} 7... Nbd4 {[%clk 0:02:55.6]} 8. Nxd4 {[%clk
0:02:59.8]} 8... Nxd4 {[%clk 0:02:56.1]} 9. Qxd4 {[%clk 0:02:59.8]} 9... Be7
{[%clk 0:02:56.3]} 10. Nc3 {[%clk 0:02:58.2]} 10... d5 {[%clk 0:02:55.7]} 11.
exd6 {[%clk 0:02:47.6]} 11... Qxd6 {[%clk 0:02:54]} 12. Qxg7 {[%clk 0:02:43.4]}
12... Bf6 {[%clk 0:02:51.3]} 13. Re1+ {[%clk 0:02:36.5]} 13... Be6 {[%clk
0:02:49.6]} 14. Qxf6 {[%clk 0:02:32.8]} 14... Rg8 {[%clk 0:02:36.9]} 15. Bg5
{[%clk 0:02:17.6]} 15... Rg6 {[%clk 0:01:35.6]} 16. Qh8+ {[%clk 0:02:16.4]}
16... Qf8 {[%clk 0:01:36]} 17. Qxf8+ {[%clk 0:02:00.9]} 17... Kxf8 {[%clk
0:01:36.9]} 18. Bf4 {[%clk 0:01:50.3]} 18... c6 {[%clk 0:01:37.1]} 19. Rad1
{[%clk 0:01:47.6]} 19... h5 {[%clk 0:01:32.3]} 20. h4 {[%clk 0:01:37]} 20... Bg4
{[%clk 0:01:27.3]} 21. Rd6 {[%clk 0:01:30.2]} 21... Kg7 {[%clk 0:01:17.7]} 22.
Rxg6+ {[%clk 0:01:28.9]} 22... Kxg6 {[%clk 0:01:18.4]} 23. f3 {[%clk 0:01:27.5]}
23... Bf5 {[%clk 0:01:16.8]} 24. Ne4 {[%clk 0:01:26.6]} 24... Rd8 {[%clk
0:01:12.8]} 25. Kf2 {[%clk 0:01:24.3]} 25... b5 {[%clk 0:01:09.8]} 26. axb5
{[%clk 0:01:24.2]} 26... cxb5 {[%clk 0:01:10.7]} 27. Bg5 {[%clk 0:01:21.5]}
27... Rd4 {[%clk 0:01:08.2]} 28. c3 {[%clk 0:01:19.8]} 28... Ra4 {[%clk
0:01:05.3]} 29. Rd1 {[%clk 0:01:12.5]} 29... Ra2 {[%clk 0:01:03.8]} 30. Rd6+
{[%clk 0:01:11.3]} 30... Kg7 {[%clk 0:01:03]} 31. Bf6+ {[%clk 0:01:07.6]} 31...
Kh6 {[%clk 0:01:00.5]} 32. Bd4+ {[%clk 0:01:06.3]} 32... Be6 {[%clk 0:00:56.4]}
33. Ng5 {[%clk 0:01:00.3]} 33... Rxb2+ {[%clk 0:00:53.9]} 34. Kg3 {[%clk
0:01:00.7]} 34... Kg6 {[%clk 0:00:47.1]} 35. Nxe6 {[%clk 0:01:00]} 35... fxe6
{[%clk 0:00:48]} 36. Rxe6+ {[%clk 0:01:00.5]} 36... Kf7 {[%clk 0:00:48.5]} 37.
Re5 {[%clk 0:00:59.2]} 37... a5 {[%clk 0:00:47]} 38. Rxh5 {[%clk 0:00:59.2]}
38... a4 {[%clk 0:00:44.7]} 39. c4 {[%clk 0:00:54.1]} 39... Rd2 {[%clk
0:00:43.6]} 40. Be3 {[%clk 0:00:46.2]} 40... Re2 {[%clk 0:00:40.4]} 41. cxb5
{[%clk 0:00:34.6]} 41... Rxe3 {[%clk 0:00:39]} 42. b6 {[%clk 0:00:34.4]} 42...
Rb3 {[%clk 0:00:37.1]} 43. Ra5 {[%clk 0:00:34.2]} 43... a3 {[%clk 0:00:36.6]}
44. b7 {[%clk 0:00:34.4]} 44... Rxb7 {[%clk 0:00:34.9]} 45. Rxa3 {[%clk
0:00:34.6]} 45... Kg6 {[%clk 0:00:34.5]} 46. Ra6+ {[%clk 0:00:33.7]} 46... Kh5
{[%clk 0:00:34.9]} 47. Ra5+ {[%clk 0:00:33.8]} 47... Kg6 {[%clk 0:00:34.5]} 48.
Kg4 {[%clk 0:00:34]} 48... Rb2 {[%clk 0:00:31.7]} 49. g3 {[%clk 0:00:33.1]}
49... Rb6 {[%clk 0:00:30.3]} 50. f4 {[%clk 0:00:32.7]} 50... Kh6 {[%clk
0:00:29.7]} 51. h5 {[%clk 0:00:31.6]} 51... Rc6 {[%clk 0:00:27.5]} 52. Rg5
{[%clk 0:00:31.5]} 52... Rc3 {[%clk 0:00:25]} 53. Rg6+ {[%clk 0:00:31.3]} 53...
Kh7 {[%clk 0:00:25.6]} 54. Ra6 {[%clk 0:00:31.1]} 54... Rb3 {[%clk 0:00:22.2]}
55. Kh4 {[%clk 0:00:30.8]} 55... Rb1 {[%clk 0:00:21.3]} 56. g4 {[%clk
0:00:30.6]} 56... Rh1+ {[%clk 0:00:21.6]} 57. Kg5 {[%clk 0:00:31.1]} 57... Rg1
{[%clk 0:00:20.8]} 58. Ra7+ {[%clk 0:00:31.2]} 58... Kg8 {[%clk 0:00:21.3]} 59.
Kf5 {[%clk 0:00:30.3]} 59... Rc1 {[%clk 0:00:20.6]} 60. g5 {[%clk 0:00:30.2]}
60... Rc5+ {[%clk 0:00:20.6]} 61. Kg4 {[%clk 0:00:30.7]} 61... Rc1 {[%clk
0:00:21.5]} 62. h6 {[%clk 0:00:31]} 62... Rg1+ {[%clk 0:00:21.4]} 63. Kf5 {[%clk
0:00:31.6]} 63... Rf1 {[%clk 0:00:21.3]} 64. g6 {[%clk 0:00:31.1]} 64... Kf8
{[%clk 0:00:20.4]} 65. g7+ {[%clk 0:00:30.3]} 65... Kg8 {[%clk 0:00:20]} 66.
Ra8+ {[%clk 0:00:30.6]} 66... Kh7 {[%clk 0:00:19.8]} 67. g8=Q+ {[%clk
0:00:31.2]} 67... Kxh6 {[%clk 0:00:19.7]} 68. Ra6+ {[%clk 0:00:31.2]} 68... Kh5
{[%clk 0:00:18.7]} 69. Qg5# {[%clk 0:00:31.4]} 1-0

[Event "Late-Titled-Tuesday-Blitz-January-30-2024"]
[Site "Chess.com"]
[Date "2024.01.30"]
[Round "10"]
[White "Burgsvik"]
[Black "pr1105"]
[Result "0-1"]
[WhiteElo "2287"]
[BlackElo "2416"]
[TimeControl "180+1"]
[EndTime "15:55:49 PST"]
[Termination "pr1105 won by checkmate"]

1. e4 {[%clk 0:03:00.9]} 1... e5 {[%clk 0:02:57.5]} 2. Nf3 {[%clk 0:03:00.6]}
2... Nc6 {[%clk 0:02:58]} 3. d4 {[%clk 0:03:01.4]} 3... exd4 {[%clk 0:02:57.8]}
4. Bb5 {[%clk 0:03:01.9]} 4... Bb4+ {[%clk 0:02:43.8]} 5. c3 {[%clk 0:02:58.9]}
5... dxc3 {[%clk 0:02:43.5]} 6. Nxc3 {[%clk 0:02:58.7]} 6... d6 {[%clk 0:02:38]}
7. O-O {[%clk 0:02:58.4]} 7... Bxc3 {[%clk 0:02:35.6]} 8. bxc3 {[%clk
0:02:58.1]} 8... Nf6 {[%clk 0:02:34.4]} 9. e5 {[%clk 0:02:58]} 9... dxe5 {[%clk
0:02:26.8]} 10. Qxd8+ {[%clk 0:02:56]} 10... Kxd8 {[%clk 0:02:27.3]} 11. Bxc6
{[%clk 0:02:55.6]} 11... bxc6 {[%clk 0:02:28.2]} 12. Nxe5 {[%clk 0:02:55.6]}
12... Ke8 {[%clk 0:02:26.3]} 13. Nxc6 {[%clk 0:02:52.4]} 13... Be6 {[%clk
0:02:21.8]} 14. Re1 {[%clk 0:02:47.4]} 14... Kd7 {[%clk 0:02:13.1]} 15. Ne5+
{[%clk 0:02:46.4]} 15... Kc8 {[%clk 0:02:12.2]} 16. Bg5 {[%clk 0:02:45]} 16...
Rb8 {[%clk 0:02:06.8]} 17. Nc6 {[%clk 0:02:38.4]} 17... Rb2 {[%clk 0:01:59.9]}
18. a4 {[%clk 0:02:30.9]} 18... Kb7 {[%clk 0:01:33.8]} 19. Nd4 {[%clk
0:02:27.3]} 19... Bd5 {[%clk 0:01:28.3]} 20. Bc1 {[%clk 0:02:20.2]} 20... Rb6
{[%clk 0:01:23]} 21. a5 {[%clk 0:02:18.1]} 21... Ra6 {[%clk 0:01:15.1]} 22. Re7
{[%clk 0:02:12.5]} 22... Re8 {[%clk 0:01:11]} 23. Rxe8 {[%clk 0:01:56.1]} 23...
Nxe8 {[%clk 0:01:11.9]} 24. Bf4 {[%clk 0:01:53.4]} 24... Nd6 {[%clk 0:00:55]}
25. Rb1+ {[%clk 0:01:46.9]} 25... Kc8 {[%clk 0:00:53]} 26. Bxd6 {[%clk
0:01:45.2]} 26... cxd6 {[%clk 0:00:53.9]} 27. Rb5 {[%clk 0:01:40.8]} 27... Bc4
{[%clk 0:00:47.7]} 28. Rh5 {[%clk 0:01:36.1]} 28... g6 {[%clk 0:00:42.8]} 29.
Rxh7 {[%clk 0:01:28.9]} 29... Rxa5 {[%clk 0:00:43.2]} 30. f3 {[%clk 0:01:20.8]}
30... Ra3 {[%clk 0:00:38.5]} 31. Rh8+ {[%clk 0:01:14.9]} 31... Kb7 {[%clk
0:00:38.4]} 32. Rd8 {[%clk 0:01:13.7]} 32... Rxc3 {[%clk 0:00:21.7]} 33. Rxd6
{[%clk 0:01:12.8]} 33... a5 {[%clk 0:00:17.7]} 34. Rd7+ {[%clk 0:01:10]} 34...
Kb6 {[%clk 0:00:16.8]} 35. Rd8 {[%clk 0:01:06.3]} 35... Kc5 {[%clk 0:00:13.3]}
36. Kf2 {[%clk 0:00:42.4]} 36... Rd3 {[%clk 0:00:13.7]} 37. Ra8 {[%clk
0:00:42.2]} 37... Rxd4 {[%clk 0:00:11.7]} 38. Rxa5+ {[%clk 0:00:41.5]} 38... Kd6
{[%clk 0:00:12.3]} 39. Ke3 {[%clk 0:00:39.8]} 39... Rd5 {[%clk 0:00:11.4]} 40.
Ra4 {[%clk 0:00:37.7]} 40... Rc5 {[%clk 0:00:11.7]} 41. Kd4 {[%clk 0:00:36.4]}
41... Be6 {[%clk 0:00:12.1]} 42. g4 {[%clk 0:00:32.9]} 42... Rc2 {[%clk
0:00:11.8]} 43. h4 {[%clk 0:00:31.8]} 43... Rh2 {[%clk 0:00:12.1]} 44. Ra6+
{[%clk 0:00:30.5]} 44... Ke7 {[%clk 0:00:12.5]} 45. Ke5 {[%clk 0:00:30.4]} 45...
Rxh4 {[%clk 0:00:12.1]} 46. Ra7+ {[%clk 0:00:29.8]} 46... Kf8 {[%clk 0:00:12.4]}
47. Kf6 {[%clk 0:00:29.5]} 47... Kg8 {[%clk 0:00:10.3]} 48. Re7 {[%clk
0:00:21.6]} 48... Rh3 {[%clk 0:00:09.6]} 49. f4 {[%clk 0:00:21.4]} 49... Rf3
{[%clk 0:00:10]} 50. Kg5 {[%clk 0:00:20.4]} 50... Rf1 {[%clk 0:00:09.9]} 51.
Re8+ {[%clk 0:00:19.6]} 51... Kg7 {[%clk 0:00:10.4]} 52. f5 {[%clk 0:00:19.6]}
52... gxf5 {[%clk 0:00:10.3]} 53. gxf5 {[%clk 0:00:19.9]} 53... Rxf5+ {[%clk
0:00:11.2]} 54. Kh4 {[%clk 0:00:20.3]} 54... Rf6 {[%clk 0:00:11.8]} 55. Rb8
{[%clk 0:00:19.7]} 55... Rg6 {[%clk 0:00:12.3]} 56. Rb4 {[%clk 0:00:20.5]} 56...
Kf6 {[%clk 0:00:12.7]} 57. Kh5 {[%clk 0:00:19.8]} 57... Ke5 {[%clk 0:00:12.7]}
58. Rb5+ {[%clk 0:00:19.9]} 58... Bd5 {[%clk 0:00:13.1]} 59. Rb2 {[%clk
0:00:20.2]} 59... Rg8 {[%clk 0:00:13.5]} 60. Re2+ {[%clk 0:00:20.7]} 60... Be4
{[%clk 0:00:14.1]} 61. Kh6 {[%clk 0:00:20.3]} 61... f5 {[%clk 0:00:14.7]} 62.
Kh5 {[%clk 0:00:20.5]} 62... f4 {[%clk 0:00:15.2]} 63. Kh4 {[%clk 0:00:20.8]}
63... f3 {[%clk 0:00:15.7]} 64. Rf2 {[%clk 0:00:21.5]} 64... Kf4 {[%clk
0:00:16.2]} 65. Rb2 {[%clk 0:00:21.3]} 65... Ke3 {[%clk 0:00:16.1]} 66. Kh3
{[%clk 0:00:18.7]} 66... f2 {[%clk 0:00:14.7]} 67. Rb3+ {[%clk 0:00:18.9]} 67...
Bd3 {[%clk 0:00:15.2]} 68. Rb1 {[%clk 0:00:18.6]} 68... f1=Q+ {[%clk 0:00:15.3]}
69. Rxf1 {[%clk 0:00:18.5]} 69... Bxf1+ {[%clk 0:00:15.6]} 70. Kh4 {[%clk
0:00:19.4]} 70... Rg2 {[%clk 0:00:15]} 71. Kh5 {[%clk 0:00:20.3]} 71... Kf4
{[%clk 0:00:15.6]} 72. Kh6 {[%clk 0:00:21.2]} 72... Rg5 {[%clk 0:00:16]} 73. Kh7
{[%clk 0:00:21.8]} 73... Kf5 {[%clk 0:00:16.9]} 74. Kh8 {[%clk 0:00:22.1]} 74...
Kf6 {[%clk 0:00:17.8]} 75. Kh7 {[%clk 0:00:22.4]} 75... Kf7 {[%clk 0:00:18.3]}
76. Kh8 {[%clk 0:00:22.6]} 76... Rh5# {[%clk 0:00:18.3]} 0-1